bitfinex/quotes_ETHUSD_20241223
["timestamp","ask_amount","ask_price","bid_price","bid_amount"]
[1734964510377,6.8178,3339.0,3338.9,9e-07]
[1734964510566,7.79905,3339.0,3338.9,9e-07]
[1734964510771,5.99034,3338.7,3337.2,0.8173]
[1734964511022,3.805,3338.2,3337.1,0.60024412]
[1734964511173,3.0,3337.4,3336.3,0.7541]
[1734964511371,0.3,3337.4,3336.3,0.7541]
[1734964511602,3.0,3337.7,3336.3,0.7541]
[1734964511809,3.0,3337.5,3336.3,0.7541]
[1734964512116,6.03009988,3337.3,3335.6,3.76063]
[1734964512328,3.77462,3337.7,3336.3,2.99727]
[1734964512529,3.7785,3337.7,3336.3,2.99727]
[1734964512828,2.99582,3338.0,3336.7,2.99697]
[1734964512985,2.99582,3338.0,3336.5,0.7627]
[1734964512986,2.99563,3338.2,3337.0,0.7627]
[1734964513425,2.99597,3337.9,3337.0,0.7627]
[1734964513575,2.99596,3337.9,3337.0,0.7627]
[1734964513773,2.99599,3337.8,3337.0,0.7627]
[1734964514011,2.99632,3337.5,3337.0,0.7627]
[1734964514183,0.299599,3337.8,3336.6,0.7896]
[1734964514184,6.32924888,3337.8,3336.6,0.7896]
[1734964514405,2.99661,3337.1,3336.6,0.7896]
[1734964514606,3.0,3337.7,3335.5,0.1707009]
[1734964514607,5.99796,3335.6,3335.5,9e-07]
[1734964514822,6.03154988,3335.6,3335.5,9e-07]
[1734964515179,2.99796,3335.6,3335.5,9e-07]
[1734964515634,9.03154988,3335.6,3335.5,9e-07]
[1734964516126,6.79238988,3336.1,3335.5,9e-07]
[1734964516293,0.7588,3336.1,3335.5,9e-07]
[1734964516483,3.0,3336.5,3335.5,9e-07]
[1734964517138,3.0,3336.5,3335.6,2.99794]
[1734964517344,3.0,3336.5,3335.5,9e-07]
[1734964517910,2.99727,3336.4,3335.5,9e-07]
[1734964518114,0.299661,3337.0,3335.5,9e-07]
[1734964518408,3.299661,3337.0,3335.5,9e-07]
[1734964518798,3.03358988,3336.6,3335.5,9e-07]
[1734964519196,3.03358988,3336.6,3335.5,2.9980009]
[1734964519397,3.03358988,3336.6,3335.5,2.9980309]
[1734964519632,3.33694887,3336.6,3335.5,9e-07]
[1734964519845,6.03109988,3336.1,3335.5,9e-07]
[1734964520009,3.03358988,3336.1,3335.5,9e-07]
[1734964520215,2.99783,3335.8,3335.5,9e-07]
[1734964520417,2.99769,3335.9,3335.5,9e-07]
[1734964520635,4.27682899,3335.8,3335.5,9e-07]
[1734964520820,0.7635,3335.8,3335.5,9e-07]
[1734964521142,3.03358988,3337.2,3336.1,2.99748]
[1734964521435,3.03358988,3337.2,3335.8,2.99775]
[1734964521436,0.7939,3337.1,3335.8,2.99775]
[1734964521639,3.82748988,3337.7,3335.7,0.7747]
[1734964521840,1.199755,3337.1,3335.9,0.59604517]
[1734964522003,1.199755,3337.1,3336.3,2.99732]
[1734964522202,0.68234899,3337.6,3335.9,0.59604517]
[1734964522539,4.87807899,3337.6,3336.4,2.99721]
[1734964522744,0.24999732,3338.7,3336.3,2.99733]
[1734964522745,3.82748988,3338.2,3336.3,2.99733]
[1734964522944,3.03358988,3338.7,3336.8,0.7747]
[1734964523142,1.199304,3338.4,3338.3,2.99551]
[1734964523311,1.199304,3338.4,3337.9,3.77051]
[1734964523312,3.03358988,3339.2,3338.1,2.99569]
[1734964523496,3.03358988,3339.2,3337.9,0.7747]
[1734964523850,0.30335899,3339.1,3338.1,2.99564]
[1734964524030,1.198945,3339.4,3338.3,2.99546]
[1734964524195,6.82182988,3339.7,3337.9,0.7747]
[1734964524408,3.82748988,3339.7,3337.9,0.7747]
[1734964524615,1.198908,3339.6,3338.1,3.7512]
[1734964524811,2.9941,3339.9,3338.2,2.99562]
[1734964525055,0.29941,3339.8,3338.3,0.674682]
[1734964525240,6.02747988,3340.2,3338.3,0.674682]
[1734964525241,1.19873,3340.1,3338.3,0.674682]
[1734964525760,1.19873,3340.1,3338.4,2.99544]
[1734964525930,1.19873,3340.1,3339.1,2.9948]
[1734964526130,3.44959668,3340.8,3338.5,2.99535]
[1734964526131,0.7765,3340.9,3339.2,0.7511]
[1734964526453,1.19832,3341.2,3339.7,3.0]
[1734964526670,2.99259,3341.6,3339.8,0.599435]
[1734964526966,2.99373,3340.4,3339.2,0.7511]
[1734964527125,3.03358988,3340.8,3339.2,0.7511]
[1734964527314,0.8306,3340.4,3339.2,3.74582]
[1734964527515,0.8306,3340.4,3339.5,2.99445]
[1734964527760,2.99339,3340.7,3339.3,2.99463]
[1734964527930,2.99339,3340.7,3339.4,2.99453]
[1734964528134,2.99348,3340.6,3339.2,1.125682]
[1734964528313,0.1952057,3340.8,3339.2,0.7511]
[1734964528519,3.1885357,3340.8,3339.2,0.7511]
[1734964528740,2.99357,3340.5,3339.2,0.7511]
[1734964528921,3.1885357,3340.8,3339.2,0.7511]
[1734964529129,2.99375,3340.3,3339.2,0.7511]
[1734964529345,3.293245,3340.2,3339.2,0.7511]
[1734964529720,0.299375,3340.2,3339.2,0.7511]
[1734964529959,2.99439,3339.6,3338.7,1.37636115]
[1734964530129,2.99437,3339.7,3338.7,0.7845]
[1734964530314,3.0,3339.7,3338.7,0.7845]
[1734964530523,5.99383,3340.2,3338.7,0.7845]
[1734964530715,2.99471,3339.3,3337.9,2.99584]
[1734964531016,2.9949,3339.1,3337.5,8.98]
[1734964531245,2.99432,3339.7,3337.5,8.98]
[1734964531246,5.99428,3339.7,3338.5,2.99535]
[1734964531485,3.0,3339.7,3338.0,8.98]
[1734964531615,0.8234,3340.1,3338.0,8.98]
[1734964531616,0.8234,3340.1,3338.8,2.99502]
[1734964531816,2.99404,3340.0,3338.8,2.99502]
[1734964532030,0.8234,3340.1,3338.6,0.7649]
[1734964532529,3.0,3339.5,3338.7,0.07001699]
[1734964532736,3.0,3339.7,3338.7,0.07001699]
[1734964532936,3.0,3339.8,3338.2,2.9956]
[1734964533153,3.0,3339.8,3338.5,2.99534]
[1734964533319,3.8234,3340.1,3338.9,2.99496]
[1734964533524,3.8234,3340.1,3338.7,0.7561]
[1734964533525,2.99437,3339.6,3338.7,0.7561]
[1734964533722,5.99407,3340.0,3339.0,0.07870441]
[1734964533923,3.0,3340.0,3338.1,0.7561]
[1734964534220,3.832,3339.2,3337.3,3.75244]
[1734964534523,2.99484,3339.1,3337.4,11.97628]
[1734964534740,3.0,3339.2,3337.5,8.98]
[1734964534940,0.25,3340.7,3338.1,0.8059]
[1734964534941,2.99446,3339.5,3338.1,0.8059]
[1734964535139,3.0,3339.8,3338.1,0.8059]
[1734964535466,3.63764,3339.7,3338.2,0.07479014]
[1734964535625,5.99462,3339.4,3338.2,3.07041014]
[1734964535829,0.63764,3339.7,3338.1,0.8059]
[1734964536025,0.9610057,3340.8,3338.7,0.7585]
[1734964536226,3.9543157,3340.8,3338.8,0.58761231]
[1734964536527,0.81863626,3340.7,3338.8,0.07462997]
[1734964536869,0.81863626,3340.7,3338.9,2.99499]
[1734964537042,2.99374,3340.3,3338.8,0.07462997]
[1734964537373,0.81863626,3340.7,3339.0,2.99487]
[1734964537733,2.99365,3340.4,3339.1,0.07454991]
[1734964537929,0.81863626,3340.7,3339.1,0.07454991]
[1734964537930,0.299365,3340.3,3339.1,0.07454991]
[1734964538138,3.0,3340.5,3338.9,2.99499]
[1734964538377,0.81863626,3340.7,3339.4,0.7784]
[1734964538732,0.81863626,3340.7,3339.5,0.07444318]
[1734964538936,0.81863626,3340.7,3339.5,0.02994542]
[1734964539167,2.99321,3340.9,3339.8,2.99417]
[1734964539497,1.198329,3341.1,3339.6,0.0744165]
[1734964539685,1.198329,3341.1,3340.0,12.75235]
[1734964539982,2.99328,3340.9,3340.1,0.07428313]
[1734964540134,3.03358988,3341.5,3340.1,0.07428313]
[1734964540335,2.99358,3340.5,3340.1,0.07428313]
[1734964540530,0.299358,3340.4,3340.0,0.7784]
[1734964540791,2.99202,3342.3,3340.0,0.7784]
[1734964540979,2.99159,3342.7,3340.4,3.0]
[1734964541164,1.197972,3342.3,3340.6,2.99339]
[1734964541365,2.99215,3342.1,3340.8,2.99324]
[1734964541745,0.7849,3342.8,3340.8,2.99324]
[1734964541746,2.99194,3342.4,3341.2,2.99285]
[1734964541939,0.7849,3342.8,3340.9,0.0704613]
[1734964541940,1.197838,3342.6,3341.1,0.8142]
[1734964542244,2.99159,3342.7,3341.3,0.07035469]
[1734964542550,2.99248,3341.8,3341.4,0.07030992]
[1734964542949,1.197874,3342.7,3341.1,0.8142]
[1734964543154,3.0,3342.5,3341.1,0.8142]
[1734964543360,0.7544,3342.0,3341.2,0.070019]
[1734964543559,2.99284,3341.3,3341.2,0.070019]
[1734964543760,0.7544,3342.0,3340.0,0.7904]
[1734964543992,3.0,3341.7,3340.0,0.7904]
[1734964544197,2.9933,3340.8,3340.1,0.06184142]
[1734964544355,3.29933,3340.8,3340.1,0.06184142]
[1734964544583,0.29933,3340.8,3340.1,0.06184142]
[1734964544784,2.99352,3340.6,3340.1,0.06184142]
[1734964544964,2.99359,3340.5,3339.5,0.7788]
[1734964545168,2.99338,3340.8,3339.5,3.77323]
[1734964545406,3.0,3340.7,3339.6,0.06197479]
[1734964545608,3.8279,3341.4,3340.0,2.994]
[1734964545803,2.9931,3341.1,3340.1,0.7788]
[1734964546109,2.9931,3341.1,3340.1,0.84064142]
[1734964546323,0.382073,3341.3,3340.1,0.84064142]
[1734964546491,3.0,3341.6,3340.3,2.9937]
[1734964546821,3.0,3341.3,3340.4,0.06176142]
[1734964547188,3.7613,3341.8,3340.1,0.7788]
[1734964547429,6.75369,3341.8,3340.5,0.06173476]
[1734964547719,2.99358,3340.5,3339.7,0.7612]
[1734964548467,2.99339,3340.7,3339.7,0.7612]
[1734964548677,2.99366,3340.4,3339.7,0.7612]
[1734964548914,3.0,3340.7,3339.7,0.7612]
[1734964549210,3.0,3340.9,3339.7,0.7612]
[1734964549410,2.9938,3340.3,3339.7,0.7612]
[1734964549972,0.38214,3340.8,3339.7,0.7612]
[1734964550526,2.99476,3339.2,3338.7,0.824]
[1734964550853,0.8272,3339.9,3338.7,0.824]
[1734964551032,0.7998,3340.4,3338.7,0.824]
[1734964551336,0.7998,3340.4,3338.7,9.804]
[1734964551476,0.8264,3341.6,3340.0,0.8279]
[1734964551671,0.1501769,3341.5,3340.6,2.99347]
[1734964551911,1.197874,3342.7,3340.8,2.99329]
[1734964552113,2.99138,3343.0,3341.5,2.99258]
[1734964552114,1.22706933,3342.2,3341.5,2.99258]
[1734964552296,1.22706933,3342.2,3341.6,0.05507725]
[1734964552597,1.22706933,3342.2,3342.1,0.8233]
[1734964553001,1.22706933,3342.2,3342.1,0.87824404]
[1734964553574,2.99124,3343.1,3342.1,0.87824404]
[1734964553775,0.299124,3343.0,3342.1,0.87824404]
[1734964554630,0.299124,3343.0,3342.1,0.8233]
[1734964554822,2.99141,3342.9,3342.1,0.8233]
[1734964555176,2.99141,3342.9,3342.2,0.0549174]
[1734964555517,2.99124,3343.1,3342.2,0.0549174]
[1734964555705,2.99124,3343.1,3341.9,8.98]
[1734964555930,2.99124,3343.1,3339.8,0.7764]
[1734964555931,2.99428,3339.7,3339.6,1.21859276]
[1734964556131,2.99414,3339.9,3339.6,1.21859276]
[1734964556299,0.299414,3339.9,3339.6,1.21859276]
[1734964556505,5.99428,3339.7,3339.6,1.21859276]
[1734964557548,3.0,3339.6,3338.7,0.00224]
[1734964557710,2.99508,3338.8,3338.7,0.00224]
[1734964558161,0.299414,3339.9,3338.7,0.00224]
[1734964558320,0.7566,3341.0,3338.8,0.7732]
[1734964558509,2.99347,3340.6,3338.8,0.7732]
[1734964558709,2.99356,3340.5,3338.8,0.7732]
[1734964559344,3.03358988,3340.7,3338.8,0.7732]
[1734964559695,2.99437,3339.6,3338.8,0.7732]
[1734964559959,3.0,3339.8,3338.8,0.7732]
[1734964560302,3.0,3340.6,3338.8,0.7732]
[1734964560507,3.0,3339.9,3338.8,0.7732]
[1734964560740,3.0,3340.2,3338.8,0.7732]
[1734964561051,3.0,3340.1,3338.8,0.7732]
[1734964561249,2.99418,3339.9,3338.8,0.7732]
[1734964561621,3.0,3339.8,3338.9,0.03546313]
[1734964561827,3.0,3340.2,3339.0,2.9949]
[1734964562053,0.60335899,3340.5,3339.0,2.9949]
[1734964562054,0.60335899,3340.5,3339.0,0.38058031]
[1734964562352,2.95413599,3342.1,3338.7,0.00224]
[1734964562353,2.99263,3341.6,3339.9,2.99409]
[1734964562536,2.99309,3341.1,3340.0,0.7716]
[1734964562737,2.99309,3341.1,3340.1,0.03651546]
[1734964562954,2.99299,3341.2,3340.1,3.03042546]
[1734964563114,2.05006933,3341.7,3340.1,0.03651546]
[1734964563487,2.9933,3340.8,3340.0,0.7716]
[1734964563642,0.22813424,3341.2,3340.0,0.7716]
[1734964563643,2.99311,3341.0,3340.0,0.7716]
[1734964563835,2.99324,3340.9,3340.1,0.03622636]
[1734964564042,2.99324,3340.9,3340.0,0.7716]
[1734964564751,2.99312,3341.0,3340.0,0.7716]
[1734964564947,3.62212542,3340.9,3340.0,0.7716]
[1734964565108,2.2813424,3341.3,3340.1,0.03622034]
[1734964565316,5.2742424,3341.3,3340.1,3.03005034]
[1734964565515,2.99296,3341.2,3340.1,0.03622034]
[1734964566157,2.99296,3341.2,3340.1,3.03010034]
[1734964566461,5.2741924,3341.3,3340.2,2.99377]
[1734964566668,3.0,3341.2,3340.2,2.99377]
[1734964566968,2.99302,3341.1,3340.3,0.03605259]
[1734964567419,3.0,3341.2,3340.0,0.7716]
[1734964567624,3.0,3341.2,3340.4,0.03602592]
[1734964567868,3.0,3341.2,3340.4,2.99364]
[1734964568038,3.0,3341.2,3340.6,0.7619]
[1734964568238,2.2813424,3341.3,3340.6,0.7619]
[1734964568637,3.0,3341.2,3340.7,0.03594594]
[1734964568836,3.0,3341.2,3339.7,2.99422]
[1734964568837,2.99361,3340.5,3339.7,0.803]
[1734964569047,3.0,3341.0,3339.7,0.803]
[1734964569363,2.99311,3341.0,3339.7,0.803]
[1734964569562,1.27870999,3340.9,3339.7,0.803]
[1734964569821,5.9931,3341.1,3340.0,2.99398]
[1734964569933,5.2813424,3341.3,3340.1,0.02993785]
[1734964570127,2.2813424,3341.3,3341.0,0.7825]
[1734964570629,5.2741924,3341.3,3341.0,0.7825]
[1734964570830,5.2741924,3341.3,3340.3,0.7779]
[1734964571030,0.65012617,3341.2,3340.3,0.7779]
[1734964571279,2.99316,3341.0,3340.4,0.03119545]
[1734964571428,0.65012617,3341.2,3340.3,0.7779]
[1734964571637,3.65012617,3341.2,3340.3,0.7779]
[1734964571971,2.9932,3341.0,3340.4,0.03119545]
[1734964572132,3.03358988,3340.7,3340.4,0.03119545]
[1734964572488,2.99446,3339.5,3339.0,0.7751]
[1734964572629,3.0,3339.7,3339.0,0.7751]
[1734964572829,2.99472,3339.2,3339.1,0.03055049]
[1734964573038,1.20228399,3339.2,3338.7,0.00224]
[1734964573455,2.99492,3339.0,3338.8,0.02865514]
[1734964573658,4.19703399,3339.2,3338.8,0.02865514]
[1734964573857,1.20228399,3339.2,3338.8,0.02865514]
[1734964574070,3.0,3339.1,3338.7,0.00224]
[1734964574333,3.0,3339.3,3338.8,0.03070193]
[1734964574759,3.86208988,3339.9,3338.8,2.99505]
[1734964574969,3.0,3339.8,3338.7,0.00224]
[1734964575289,1.08683039,3339.7,3338.9,0.03067334]
[1734964575494,1.08683039,3339.7,3338.7,0.00224]
[1734964575945,1.08683039,3339.7,3338.7,2.9974]
[1734964576149,4.08117039,3339.7,3338.8,0.02865514]
[1734964576340,2.99476,3339.2,3338.8,0.02865514]
[1734964576675,3.0,3339.1,3338.7,0.00224]
[1734964577083,2.99481,3339.1,3338.8,0.02865514]
[1734964577469,3.0,3339.0,3338.7,0.00224]
[1734964577847,2.99508,3338.8,3338.7,0.00224]
[1734964578061,3.89407,3338.8,3338.7,0.00224]
[1734964578365,6.89407,3338.8,3338.7,0.00224]
[1734964578593,2.99553,3338.3,3337.4,0.8317]
[1734964578783,2.99592,3337.9,3337.4,0.8317]
[1734964578952,2.99592,3337.9,3336.8,0.59322059]
[1734964578953,3.0,3338.1,3337.5,0.03054975]
[1734964579149,0.67835899,3338.0,3336.5,1.44460061]
[1734964579367,3.0,3338.6,3337.3,0.8317]
[1734964580249,1.22706933,3338.9,3337.4,2.99634]
[1734964580449,3.0,3338.8,3337.4,0.03122698]
[1734964580976,3.0,3338.8,3337.5,2.99625]
[1734964581177,3.0,3339.0,3338.1,0.8106]
[1734964581381,3.0,3338.9,3338.1,0.8106]
[1734964581691,2.99493,3339.0,3338.1,0.8106]
[1734964581692,0.8192,3339.7,3338.2,0.03126646]
[1734964581983,1.22706933,3339.7,3339.1,0.8106]
[1734964582380,1.22706933,3339.7,3339.2,0.03071025]
[1734964582958,4.26065921,3340.8,3339.2,0.03071025]
[1734964583155,3.03358988,3339.8,3339.2,0.03071025]
[1734964583587,3.0,3339.1,3338.3,0.8014]
[1734964583786,5.99487,3339.1,3338.3,0.8014]
[1734964583959,3.0,3338.9,3338.3,0.8014]
[1734964584154,2.99531,3338.6,3338.4,0.02866307]
[1734964584398,6.294881,3338.5,3338.4,0.02866307]
[1734964584596,2.99599,3337.8,3336.9,2.02999469]
[1734964584897,3.0,3338.1,3336.9,2.02999469]
[1734964585199,0.8035,3338.4,3337.1,2.99658]
[1734964585720,3.0,3338.1,3337.2,0.02898355]
[1734964585857,3.679919,3338.1,3337.2,0.02898355]
[1734964586061,3.679919,3338.1,3337.0,2.99669]
[1734964586261,3.679919,3338.1,3337.3,0.02895683]
[1734964586565,3.679919,3338.1,3337.4,0.02893012]
[1734964587022,3.679919,3338.1,3337.0,2.99669]
[1734964587294,2.99601,3337.8,3337.5,0.02890341]
[1734964587496,5.9957,3338.2,3338.1,0.01498]
[1734964588471,0.299531,3338.5,3338.1,0.01498]
[1734964588668,5.99562,3338.2,3338.1,0.01498]
[1734964589017,8.1239981,3338.2,3338.1,0.01498]
[1734964589362,0.7617,3338.1,3336.9,0.8014]
[1734964589584,2.99635,3337.4,3336.1,2.9975]
[1734964589901,2.99689,3336.8,3335.9,0.7645]
[1734964590105,2.99681,3336.9,3335.9,0.7645]
[1734964590302,3.0,3336.8,3336.0,2.9976]
[1734964590492,3.0,3337.0,3335.9,0.7645]
[1734964590801,1.71036981,3338.0,3336.1,0.7668]
[1734964591120,2.99598,3337.8,3336.7,2.99696]
[1734964591308,2.99599,3337.8,3336.7,2.99696]
[1734964591479,0.38387479,3337.9,3336.5,2.99713]
[1734964592008,5.99618,3337.6,3336.5,2.99713]
[1734964592217,0.599618,3337.5,3336.5,2.99713]
[1734964592431,5.99618,3337.6,3336.5,2.99713]
[1734964592614,2.99627,3337.5,3336.5,0.60442198]
[1734964592921,2.99662,3337.1,3336.4,0.814]
[1734964593278,3.0,3337.0,3335.6,0.8177]
[1734964593479,2.99742,3336.2,3335.6,1.42938392]
[1734964593683,2.99727,3336.4,3335.6,1.42938392]
[1734964594414,2.99727,3336.4,3335.7,0.03170107]
[1734964594611,3.0,3336.7,3335.7,0.03170107]
[1734964594612,3.03358988,3336.3,3335.7,0.03170107]
[1734964594816,5.99778,3335.8,3335.7,0.03170107]
[1734964595018,3.0,3335.6,3334.4,0.7515]
[1734964595325,3.0,3335.8,3334.6,2.99885]
[1734964595497,4.09773899,3336.2,3334.9,2.99855]
[1734964595498,3.0,3336.0,3334.9,2.99855]
[1734964595703,3.0,3336.7,3335.0,0.7515]
[1734964595910,3.0,3336.5,3335.1,2.9984]
[1734964596113,3.0,3336.4,3335.2,3.02829242]
[1734964596298,3.0,3336.2,3335.2,0.02998242]
[1734964596512,3.0,3336.4,3335.0,1.34019776]
[1734964596713,0.89972,3336.4,3335.0,1.34019776]
[1734964596929,2.99717,3336.5,3335.2,2.9983]
[1734964597226,3.0,3336.0,3335.3,0.02988931]
[1734964597399,5.99763,3336.0,3335.3,0.02988931]
[1734964597600,3.0,3336.0,3335.0,0.7515]
[1734964597813,3.0,3336.1,3335.4,0.02985653]
[1734964598015,0.599742,3336.0,3335.0,0.7515]
[1734964598233,0.599742,3336.0,3335.5,0.02982978]
[1734964598391,0.599742,3336.0,3335.0,0.7515]
[1734964598730,2.99778,3335.8,3335.1,0.02988247]
[1734964598892,2.99823,3335.4,3335.1,0.02988247]
[1734964599254,3.0,3335.7,3334.7,0.01]
[1734964599396,3.0,3335.2,3334.7,0.01]
[1734964599590,3.0,3335.4,3334.7,0.01]
[1734964599905,3.8288,3335.6,3334.7,0.01]
[1734964599906,3.0,3335.0,3334.7,0.01]
[1734964600602,3.0,3335.1,3334.7,0.01]
[1734964600807,3.0,3335.7,3334.8,0.8048]
[1734964600992,3.0,3335.4,3334.8,0.8048]
[1734964601192,3.0,3336.2,3334.9,0.03063603]
[1734964601391,3.0,3335.9,3334.9,0.03063603]
[1734964601621,3.0,3335.3,3334.8,0.8048]
[1734964602131,2.99792,3335.7,3334.9,0.03046097]
[1734964602333,2.99714,3336.6,3334.9,0.03046097]
[1734964602508,2.99753,3336.1,3335.0,2.99848]
[1734964602707,2.99734,3336.3,3335.1,2.99839]
[1734964602910,3.03358988,3336.8,3335.1,0.03040747]
[1734964603105,2.99711,3336.6,3335.1,0.03040747]
[1734964603337,3.03358988,3336.8,3334.9,0.8239]
[1734964603630,0.71278399,3336.7,3335.0,0.62413754]
[1734964603836,2.99716,3336.5,3335.4,2.9981]
[1734964603997,2.99725,3336.4,3335.4,2.9981]
[1734964604196,0.71278399,3336.7,3335.1,0.8101]
[1734964604197,0.71278399,3336.7,3335.5,0.0300108]
[1734964604397,2.99754,3336.1,3335.5,0.0300108]
[1734964604710,2.99734,3336.3,3335.1,3.80846]
[1734964604913,3.0,3336.2,3335.1,3.80846]
[1734964605112,3.0,3336.2,3335.1,0.8101]
[1734964605313,0.299734,3336.3,3335.2,0.03009103]
[1734964605514,3.299734,3336.3,3335.2,3.02832103]
[1734964605741,3.0,3336.1,3335.2,3.02832103]
[1734964605932,3.9297154,3336.1,3335.2,0.03009103]
[1734964606143,3.0,3335.8,3335.2,0.03009103]
[1734964606532,3.0,3336.2,3335.2,0.03009103]
[1734964606733,5.99823,3335.3,3335.2,0.03009103]
[1734964607034,3.81428,3334.8,3334.7,0.01]
[1734964607246,9.84786988,3334.8,3334.7,0.01]
[1734964607461,11.13250587,3334.8,3334.7,0.01]
[1734964607665,7.28331599,3334.8,3334.7,0.01]
[1734964607865,3.84918988,3335.3,3334.7,0.01]
[1734964607866,2.99832,3335.2,3334.7,0.01]
[1734964608070,3.0,3335.3,3334.7,0.01]
[1734964608280,0.8156,3335.7,3334.7,0.01]
[1734964608281,3.8156,3335.7,3334.7,0.01]
[1734964608438,2.99859,3334.9,3334.8,0.03039377]
[1734964608778,0.8156,3335.7,3334.7,0.01]
[1734964608979,3.0,3335.5,3334.7,0.01]
[1734964609180,5.99809,3335.5,3334.8,0.03039377]
[1734964609332,3.0,3335.3,3334.8,0.03039377]
[1734964609538,3.0,3334.8,3334.7,0.01]
[1734964609768,0.3,3334.8,3334.7,0.01]
[1734964610082,3.297074,3336.3,3334.7,0.01]
[1734964610083,3.0,3335.5,3334.7,0.01]
[1734964610447,3.03358988,3335.8,3334.8,0.03039377]
[1734964610448,3.0,3335.3,3334.8,0.03039377]
[1734964610777,3.0,3335.6,3334.7,0.01]
[1734964611079,5.99868,3334.8,3334.7,0.01]
[1734964611278,10.01311688,3334.8,3334.7,1e-05]
[1734964611437,10.79991688,3334.8,3334.7,1e-05]
[1734964611636,2.99996,3333.4,3332.4,0.8254]
[1734964611866,0.7868,3333.7,3332.3,0.58967527]
[1734964612072,3.00025,3333.1,3332.5,0.78471686]
[1734964612274,0.7868,3333.7,3332.5,0.7562]
[1734964612572,0.3,3333.8,3332.5,0.7562]
[1734964612778,6.03305988,3334.0,3332.7,3.00057]
[1734964612979,0.8287,3334.3,3332.6,0.02849007]
[1734964613281,2.99877,3334.7,3333.3,0.7989]
[1734964613445,2.99908,3334.4,3333.3,0.7989]
[1734964613662,0.7545,3334.8,3333.4,0.02950755]
[1734964613663,2.99917,3334.3,3333.4,0.02950755]
[1734964613863,2.99931,3334.1,3333.3,0.7989]
[1734964614039,0.299917,3334.2,3333.5,0.02948077]
[1734964614232,0.299917,3334.2,3333.4,0.02937464]
[1734964614437,3.03358988,3334.0,3332.6,0.7814]
[1734964614638,2.99995,3333.4,3332.6,0.7814]
[1734964614869,2.99995,3333.4,3332.7,0.02956212]
[1734964615136,2.99977,3333.6,3332.8,0.02953533]
[1734964615349,2.99977,3333.6,3332.6,0.7814]
[1734964615350,3.375997,3333.5,3332.6,0.7814]
[1734964615555,0.376137,3333.5,3332.7,0.02956212]
[1734964616212,0.7616,3333.8,3332.8,3.00045]
[1734964616213,3.0,3333.8,3332.8,3.00045]
[1734964616473,3.299917,3334.2,3332.7,0.02956212]
[1734964616474,3.299157,3334.2,3332.7,0.02956212]
[1734964616679,0.299917,3334.2,3332.9,0.02950855]
[1734964616983,0.299917,3334.2,3332.5,0.59676387]
[1734964616984,3.03358988,3333.4,3330.8,3.7913]
[1734964617163,6.00048,3332.8,3331.6,0.7891]
[1734964617477,3.0,3332.8,3331.6,0.7891]
[1734964617902,1.07085899,3333.3,3331.6,0.7891]
[1734964617903,3.00023,3333.1,3331.6,0.7891]
[1734964618102,6.00033,3333.0,3331.8,3.00137]
[1734964618389,3.0005,3332.8,3332.3,0.04028265]
[1734964618589,0.7675,3333.3,3332.3,0.04028265]
[1734964618896,5.99975,3333.7,3332.4,0.7891]
[1734964619091,3.0,3333.5,3332.4,0.7891]
[1734964619297,0.90333399,3333.7,3332.5,3.04092227]
[1734964619601,0.90333399,3333.7,3332.5,0.04020227]
[1734964619981,3.03358988,3333.4,3332.5,0.04020227]
[1734964620181,3.00022,3333.1,3332.4,0.7853]
[1734964620677,3.0004,3332.9,3332.2,0.1707018]
[1734964620919,3.600232,3333.1,3332.2,0.1707018]
[1734964621116,3.0,3333.1,3332.2,0.1707018]
[1734964621296,3.00008,3333.3,3332.3,0.0300741]
[1734964621503,3.00016,3333.2,3332.2,0.1707018]
[1734964621715,3.90333399,3333.7,3332.4,0.02804237]
[1734964621884,1.201018,3333.2,3332.3,3.0309841]
[1734964622101,1.201018,3333.2,3332.3,0.46001999]
[1734964622432,3.03358988,3334.0,3332.5,0.7597]
[1734964622745,3.00018,3333.2,3332.5,0.7597]
[1734964623049,3.00018,3333.2,3332.6,0.02798879]
[1734964623339,3.00003,3333.3,3332.6,0.02798879]
[1734964623518,0.7846,3333.5,3332.6,0.02798879]
[1734964623754,1.200905,3333.7,3332.7,0.7597]
[1734964623879,1.200905,3333.7,3333.1,3.00014]
[1734964624084,1.200905,3333.7,3332.8,0.79663058]
[1734964624336,3.81818988,3334.5,3333.2,0.02782807]
[1734964624337,3.00007,3333.3,3333.2,0.02782807]
[1734964624540,3.00007,3333.3,3332.8,0.7667]
[1734964624740,3.300037,3333.3,3333.2,0.02782807]
[1734964625037,0.300007,3333.3,3332.3,0.60026989]
[1734964625181,0.7728,3333.9,3332.2,0.9691018]
[1734964625182,3.00012,3333.2,3332.2,0.9691018]
[1734964625387,3.00021,3333.1,3332.4,0.02832029]
[1734964625581,2.99973,3333.7,3332.5,3.00073]
[1734964625809,3.0,3333.4,3332.5,3.03104446]
[1734964625990,0.7728,3333.9,3332.7,3.00049]
[1734964626206,0.7728,3333.9,3332.5,0.33341891]
[1734964626207,3.0,3333.8,3332.5,0.33341891]
[1734964626406,3.0,3333.8,3332.8,0.03022835]
[1734964626407,2.99958,3333.8,3332.8,0.03022835]
[1734964626613,2.99958,3333.8,3332.6,0.79938575]
[1734964626788,2.99942,3334.0,3332.9,0.03019965]
[1734964627117,0.796631,3334.4,3333.0,0.7924]
[1734964627282,0.796631,3334.4,3333.6,2.99974]
[1734964627485,0.796631,3334.4,3333.0,0.03017095]
[1734964627486,0.796631,3334.4,3333.9,0.7924]
[1734964627789,2.99913,3334.3,3334.0,0.0278918]
[1734964627984,2.99931,3334.1,3334.0,0.0278918]
[1734964628229,2.99948,3334.0,3333.2,0.7924]